Cogmind - Beta 13 @@@ ROGUE MODE // 2024.03.26 @ 07:22:07 // Winter2019/RPGLIKE Player: 3.2.1.HEAT DEATH Result: Core destroyed Performance ------------- Evolutions (0) 0 Regions Visited (1) 200 Robots Destroyed (12) 60 Value Destroyed (180) 180 Prototype IDs (0) 0 Alien Tech Used (0) 0 Bonus (0) 0 TOTAL SCORE: 440 Bonus ------- None Cogmind --------- Core Integrity 0/600 Matter 291/300 Energy 104/125 System Corruption 0% Temperature Warning (324) Movement Rolling (80) Location -10/Materials Parts ------- > --- POWER (1) -------- Light Ion Engine > --- PROPULSION (1) --- Wheel > --- UTILITY (2) ------ Improved Terrain Scanner Seismic Detector > --- WEAPON (4) ------- Mining Laser > --- INVENTORY (0) ---- (None) Peak State ------------ > --- POWER ------------ Light Ion Engine > --- PROPULSION ------- Wheel > --- UTILITY ---------- Improved Terrain Scanner Seismic Detector > --- WEAPON ----------- Mining Laser Mining Laser Mining Laser Mining Laser > --- INVENTORY -------- (None) [Rating: 10] Favorites ----------- Power Light Ion Engine Engine Light Ion Engine Propulsion Wheel Wheel Wheel Utility Improved Terrain Scanner Device Improved Terrain Scanner Weapon Mining Laser Energy Gun Small Laser Special Weapon Mining Laser Build | -11 -10 ------- Run | Yrd Mat Slots Evolved 4 | 4 . Power . | . . Propulsion . | . . Utility 1 | 1 . Weapon 3 | 3 . Parts Attached 9 | 9 . Power 1 | 1 . Engine 1 | 1 . Core . | . . Reactor . | . . Propulsion 1 | 1 . Treads . | . . Leg . | . . Wheel 1 | 1 . Hover . | . . Flight . | . . Utility 2 | 2 . Device 2 | 2 . Storage . | . . Processor . | . . Hackware . | . . Protection . | . . Artifact . | . . Weapon 5 | 5 . Energy Gun 1 | 1 . Energy Cannon . | . . Ballistic Gun . | . . Ballistic Cannon . | . . Launcher . | . . Special Weapon 4 | 4 . Impact Weapon . | . . Slashing Weapon . | . . Piercing Weapon . | . . Special Melee Weapon . | . . Unidentified Prototypes . | . . Parts Lost 3 | . 3 Power . | . . Propulsion . | . . Utility . | . . Weapon 3 | . 3 Highest Loss Streak 3 | . 3 To Critical Strikes . | . . Average Slot Usage (%) 95 | . 95 Engine 12 | . 12 Wheel 12 | . 12 Device 25 | . 25 Special Weapon 45 | . 45 Naked Turns . | . . Heaviest Build 9 | 9 9 Greatest Support 10 | 10 10 Greatest Overweight (x) . | . . Average Overweight (x) . | . . Largest Inventory Capacity . | . . Average Capacity . | . . Most Carried . | . . Average Carried . | . . Final Capacity . | . . Final Carried . | . . Class Distribution -------------------- 95% | Scavenger-Gunner 4% | Mutant Dominant Class ---------------- Scavenger-Gunner | -10/Materials Resources | -11 -10 ----------- Run | Yrd Mat Matter Collected 251 | 251 . Remotely . | . . Salvage Created 227 | 227 . Parts 25 | 23 2 Haulers Intercepted . | . . Recyclers Shooed 1 | 1 . Parts Field Recycled . | . . Retrieved Matter . | . . Parts Self-Destructed . | . . Prevented . | . . Kills | -11 -10 ------- Run | Yrd Mat Combat Hostiles Destroyed 3 | . 3 Cannons 3 | . 3 Classes Destroyed 5 | 2 3 Worker 1 | . 1 Tunneler 6 | 6 . Recycler 1 | 1 . Operator 1 | . 1 Grunt 3 | . 3 Best Kill Streak 5 | 5 3 Combat Bots Only 2 | . 2 Max Kills in Single Turn 1 | 1 1 Gunslinging . | . . Exploded . | . . Melee . | . . Uniques/NPCs Destroyed . | . . Combat | -11 -10 -------- Run | Yrd Mat Hostile Shots Fired 63 | . 63 Missed 7 | . 7 Damage Taken 790 | . 790 Core 653 | . 653 Absorbed by Shields . | . . Redirected to Core 441 | . 441 Core Remaining (%) 100 | 100 . Volleys Fired 36 | 24 12 Largest 3 | 3 3 Hottest 300 | 240 300 Shots Fired 51 | 29 22 Gun 24 | 24 . Cannon . | . . Launcher . | . . Special 27 | 5 22 Kinetic . | . . Thermal 51 | 29 22 Explosive . | . . Electromagnetic . | . . Robot Hit Streak 10 | 8 10 Robot Miss Streak 4 | 3 4 Penetration Max . | . . Secondary Targets . | . . Shots Hit Robots 28 | 18 10 Core Hits 14 | 8 6 Critical Kills . | . . Critical Parts Destroyed . | . . Critical Strikes . | . . Melee Attacks . | . . Impact . | . . Slashing . | . . Piercing . | . . Sneak Attacks . | . . Combat Hostiles . | . . Follow-up Attacks . | . . Damage Inflicted 468 | 212 256 Guns 188 | 188 . Cannons . | . . Explosions . | . . Melee . | . . Ramming 16 | . 16 Kinetic . | . . Thermal 452 | 212 240 Explosive . | . . Electromagnetic . | . . Impact . | . . Slashing . | . . Piercing . | . . Highest Corruption . | . . Average Corruption . | . . Corruption Purged . | . . Corruption Blocked . | . . Overload Shots . | . . Overflow Damage . | . . Projectiles . | . . Explosions . | . . Melee . | . . Knockbacks . | . . Impact . | . . Kinetic . | . . Secondary . | . . Self-Inflicted Damage 7 | . 7 Shots . | . . Rammed 5 | . 5 Targets Rammed 5 | . 5 Kicked . | . . Crushed . | . . Highest Temperature 489 | 98 489 Average Temperature 169 | 44 213 Received Heat Transfer 453 | . 453 Effects 4 | . 4 Shutdowns 2 | . 2 Interference 1 | . 1 Short Circuit 1 | . 1 Siege Activations . | . . Robots Corrupted . | . . Combat Hostiles . | . . Parts Fried . | . . Impact Corruptions . | . . Robots Melted . | . . Combat Hostiles . | . . Parts Melted . | . . Heat Transferred 975 | 475 500 Parts Sabotaged . | . . Parts Stolen . | . . Parts Stripped . | . . Power Chain Reactions . | . . Alert | -11 -10 ------- Run | Yrd Mat Peak Influence 113 | 35 113 Initial 22 | . 22 Average 43 | 20 80 Maximum Alert Level . | . . Low Security (%) 100 | 100 100 Level 1 . | . . Level 2 . | . . Level 3 . | . . Level 4 . | . . Level 5 . | . . High Security . | . . Max Security . | . . Squads Dispatched 1 | . 1 Investigation . | . . Extermination . | . . Reinforcement 1 | . 1 Assault . | . . Garrison . | . . Intercept . | . . Searches Triggered . | . . Construction Impeded . | . . Haulers Reinforced . | . . Active Scanning Responses . | . . Cargo Convoy Interrupts . | . . Stealth | -11 -10 --------- Run | Yrd Mat Distress Signals . | . . Communications Jammed . | . . Distress Signals . | . . Times Spotted 6 | . 6 Peak Tracking Total 3 | . 3 Tactical Retreats . | . . Traps | -11 -10 ------- Run | Yrd Mat Traps Triggered . | . . Indirectly . | . . Trap Hack Attempts . | . . Triggered . | . . Disarmed . | . . Reprogrammed . | . . Reused . | . . Traps Extracted . | . . Installed . | . . Triggered . | . . Machines | -11 -10 ---------- Run | Yrd Mat Machines Disabled . | . . Max in Single Turn . | . . Machines Repaired . | . . Machines Dismantled . | . . Machines Sabotaged . | . . Overloaded Fab Kills . | . . Hacking | -11 -10 --------- Run | Yrd Mat Machines Accessed 1 | . 1 Terminals 1 | . 1 Fabricators . | . . Repair Stations . | . . Recycling Units . | . . Scanalyzers . | . . Garrison Access . | . . Total Hacks 4 | . 4 Successful 1 | . 1 Failed 3 | . 3 Catastrophic 2 | . 2 Database Lockouts . | . . Manual . | . . Terminals 4 | . 4 Fabricators . | . . Repair Stations . | . . Recycling Units . | . . Scanalyzers . | . . Garrison Access . | . . Terminal Hacks 1 | . 1 Branch Access Points 1 | . 1 Fabricator Hacks . | . . Repair Station Hacks . | . . Recycling Unit Hacks . | . . Scanalyzer . | . . Garrison Access Hacks . | . . Unauthorized Hacks . | . . Terminals . | . . Fabricators . | . . Repair Stations . | . . Recycling Units . | . . Scanalyzers . | . . Garrison Access . | . . Data Cores Recovered . | . . Used . | . . Hacking Detections 1 | . 1 Full Trace Events 1 | . 1 Feedback Events . | . . Feedback Blocked . | . . Robot Schematics Acquired . | . . Robots Built . | . . Authchips . | . . Time . | . . Total Robot Build Rating . | . . Part Schematics Acquired . | . . Parts Built . | . . Authchips . | . . Time . | . . Total Part Build Rating . | . . Parts Repaired . | . . Time . | . . Parts Recycled . | . . Recycled Matter . | . . Retrieved Matter . | . . Retrieved Components . | . . Parts Scanalyzed . | . . Part Schematics Acquired . | . . Parts Damaged . | . . Bothacking | -11 -10 ------------ Run | Yrd Mat Used RIF Installer . | . . Robots Hacked . | . . Non-combat . | . . Combat . | . . Robot Hacks Applied . | . . Relay Couplers Released . | . . Fabnet Peak Effective % . | . . Robots Rewired . | . . Allies Hacked . | . . Hacks Repelled . | . . Allies | -11 -10 -------- Run | Yrd Mat Total Allies . | . . Largest Group . | . . Highest-Rated Group . | . . Highest-Rated Ally . | . . Total Orders . | . . Ally Attacks . | . . Total Damage . | . . Kills . | . . Allies Corrupted . | . . Allies Melted . | . . Intel | -11 -10 ------- Run | Yrd Mat Robot Analysis Total . | . . Derelict Logs Recovered . | . . Drone Launches . | . . Drone Recoveries . | . . Exploration | -11 -10 ------------- Run | Yrd Mat Turns Passed 391 | 237 154 Spaces Moved 122 | 58 64 Core 4 | 4 . Treads . | . . Legs . | . . Wheels 118 | 54 64 Hover . | . . Flight . | . . Fastest Speed 50 | 50 80 Average Speed 79 | 77 80 Slowest Speed 80 | 80 80 Overloaded Moves . | . . Propulsion Burnouts . | . . Robots Hopped . | . . Cave-ins Triggered . | . . Exploration Rate (%) 10 | 4 17 Regions Visited 1 Branch Regions . Pre-discovered Areas . | . . Known Exits Taken . | . . Unknown Exits Taken 1 | 1 . Scrap Searched . | . . Spaces Dug . | . . Terrain Destroyed 10 | 1 9 Melee . | . . Projectile 10 | 1 9 AOE . | . . Terrain Rammed . | . . Walls Destroyed . | . . Machines Disabled . | . . Actions | -11 -10 --------- Run | Yrd Mat Total 311 | 208 103 Wait 138 | 117 21 Move 121 | 57 64 Hop . | . . Pick Up . | . . Fast Attach 9 | 9 . Attach . | . . Detach . | . . Swap . | . . Drop 1 | 1 . Fire 36 | 24 12 Melee . | . . Ram 4 | . 4 Kick . | . . Crush . | . . Escape Stasis . | . . Rewire . | . . Trap . | . . Miscellaneous 2 | . 2 Route ------- -11/Scrapyard -10/Materials (discovered 2 exits: Min x2) History --------- Turn | Location | Event 6 | -11/Scrapyard | Upgraded with Utility slot (x1) 6 | -11/Scrapyard | Upgraded with Weapon slot (x3) 14 | -11/Scrapyard | Discovered new exit (range 16) 238 | -11/Scrapyard | Entered Materials 249 | -10/Materials | Identified exit to Mines 313 | -10/Materials | Build established: Scavenger-Gunner 360 | -10/Materials | Core integrity fell below 50% 378 | -10/Materials | Core integrity fell below 20% 392 | -10/Materials | Core destroyed Last Messages --------------- 00311_ K-01 Serf cleans the Electrolysis Chamber. 00317_ K-01 Serf destroyed. 00321_ R-06 Scavenger collects Lgt. Ion Engine. 00343_ Critical hit (Burn: +37). 00345_ U-05 Engineer builds a Wall. 00363_ Mining Laser destroyed. 00366_ Power failure, Lgt. Ion Engine shutdown. 00371_ Mining Laser destroyed. 00373_ U-05 Engineer builds a Wall. 00374_ Mining Laser broken. 00374_ Overheating: Short circuit. 00377_ U-05 Engineer builds a Wall. 00379_ G-34 Mercenary destroyed. 00380_ Overheating: System interference. 00380_ Mining Laser temporarily disabled. 00382_ Power failure, Lgt. Ion Engine shutdown. 00387_ Broken Mining Laser destroyed. 00388_ Slammed into G-47 Trooper. 00392_ Destabilizing: Core damaged (-12). Map ----- +----------------------------------------------------+ | ????????????????????????????????????????#??? | | ???????????????????????????????????????????? | | ???????????????????????????????????????????? | | ????????????????????????????????????#####??? | | ????????????????????????????????????# #??? | | ????????>?????????????????#?????????# #??? | | ????????????????????????????????????# #??? | | ??????????????????????? ????????????# #### | | ??????????????????? ??? ????????????# | | ???????????????? ??????????? ???????# | | ??????????????????????#???? ? ?????## | | ??????# ?????????????# ??????? ????# ### | | ??????# ????????????# ???????????# #?? | | ??????? #?????? ? ? ? ??? ? ????# #?? | | ???????? ######?+####+#+########### #?? | | ????????? ? #?? | | ?????????? ? ? #?? | | ??????????? ? ??? """ """ ### | | ????????????# ##+######u#?# """ """ ""# | | ????????##### # #?# """ """ T"# | | ????????? + # """ """ ### ""# | | ?????????? ?# + """ """ + % ### | | ????????????# # """ """ ### !#?? | | ?????????? ?# # u #?# #"T"######?? | | ????????????# # g ### #"""##?????? | | ????????????# + @ #?# #####??#??#? | | ????????????# # #?# ##???#?????? | | ????????????# ###########?# #?? ???????? | | ????????????##+##???????????# # ??? ?????? | | ????????????????????????????# #??? ??????? | | ???????????????????????? ???# # ??? ?????? | | ?????????????????? ?????????# #??????????? | | ????????????????????????????# +??????????# | | ?????????????????????# ????? #??????????? | | ????????????????? ?????? ??? #??????????? | | ??????????????????????????? #??????????? | | ???????????????????????+????# #??????????? | | ????????????????????????????? ???????????? | | ???????????????????????????????????????????? | | ???????????????????????????????????????????? | | ???????????????????????????????????????????? | | ???????????????????????????????????????????? | | ???????????????????????????????????????????? | | ???????????????????????????????????????????? | | ???????????????????????????????????????????? | | ???????????????????????????????????????????? | | ???????????????????????????????????????????? | | ???????????????????????????????????????????? | | ???????????????????????????????????????????? | | ???????????????????????????????????????????? | +----------------------------------------------------+ Best States ------------- Heat Dissipation 25 Energy Generation 10 Energy Capacity 125 Matter Stores 286 Matter Capacity 300 Sight Range 16 Terrain Scan Range 16 Terrain Scan Density 10 Evasion (%) 44 Item Schematics ----------------- None Robot Schematics ------------------ None Fabricated ------------ Nothing Alien Tech Used ----------------- None Achievements -------------- None Challenges ------------ None RPGLIKE | -11 -10 --------- Run | Yrd Mat Levels Raised . | . . XP Earned 3385 | 3000 385 XP Spent 2900 | 2900 . Upgrades 4 | 4 . Utility Slot 1 | 1 . Weapon Slot 3 | 3 . Protomatter Created 18 | . 18 Integrity Restored 48 | . 48 Core 48 | . 48 Protomatter Decayed 2 | . 2 Game ------ Seed DecoderMiniInitializer Manual? 0 Play Time 00:05:05 Cumulative 654.8 hours Start 2024.03.26 @ 07:18:50 End 2024.03.26 @ 07:22:07 Sessions 1 Manual Loads 0 Difficulty Rogue Special Mode Winter2019/RPGLIKE Game No. 257 Rogue 233 Adventurer 3 Explorer 21 Win Type - Total 15 Types 10/2/1/1/0/1/0/0/0 Lore% 90 Gallery% 96 Achievement% 83 Wizard Run 0 Options --------- Layout 2 ASCII 0 Keyboard 0 Movement Numpad Keybinds 0 Fullscreen 2 Font 24/Smallcaps Map View 50x44 Zoom Use 0% Tactical HUD 1 Map Filters NONE Filters NONE Steam X RUN: 75fe9351-590f-49e4-87aa-281df27f5acf